Cogmind - Beta 14 @@@ ROGUE MODE // 2025.03.08 @ 16:57:55 Player: LightKnight Result: Self-destructed Performance ------------- Evolutions (1) 500 Regions Visited (3) 600 Robots Destroyed (27) 135 Value Destroyed (806) 806 Prototype IDs (2) 40 Alien Tech Used (0) 0 Bonus (0) 0 TOTAL SCORE: 2081 Bonus ------- None Cogmind --------- Core Integrity 316/400 Matter 218/300 Energy 250/250 System Corruption 0% Temperature Cool (6) Movement Walking (120) Location -9/Materials Parts ------- > --- POWER (1) -------- Ion Engine > --- PROPULSION (2) --- Aluminum Leg Improved Aluminum Leg > --- UTILITY (4) ------ Heat Sink Improved Heat Sink Small Storage Unit Utility Shielding > --- WEAPON (2) ------- Small Laser > --- INVENTORY (8) ---- Ion Engine Light Ion Engine Aluminum Leg Aluminum Leg Aluminum Leg Utility Shielding Mining Laser Peak State ------------ > --- POWER ------------ Ion Engine > --- PROPULSION ------- Aluminum Leg Improved Aluminum Leg > --- UTILITY ---------- Heat Sink Heat Sink Improved Heat Sink Small Storage Unit > --- WEAPON ----------- Beam Rifle Particle Gun > --- INVENTORY -------- Light Ion Engine Aluminum Leg Aluminum Leg Aluminum Leg Aluminum Leg Small Laser Grenade Launcher Mining Laser [Rating: 14] Favorites ----------- Power Ion Engine Engine Ion Engine Propulsion Aluminum Leg Leg Aluminum Leg Utility Small Storage Unit Device Improved Heat Sink Storage Small Storage Unit Processor Targeting Computer Protection Utility Shielding Weapon Medium Laser Energy Gun Medium Laser Ballistic Gun Assault Rifle Launcher Grenade Launcher Build | -11 -10 -10 -9 ------- Run | Yrd Mat Min Mat Slots Evolved 2 | . . . 2 Power . | . . . . Propulsion . | . . . . Utility 2 | . . . 2 Weapon . | . . . . Parts Attached 25 | . 2 6 17 Power 3 | . 1 . 2 Engine 3 | . 1 . 2 Core . | . . . . Reactor . | . . . . Propulsion 7 | . . 3 4 Treads . | . . . . Leg 7 | . . 3 4 Wheel . | . . . . Hover . | . . . . Flight . | . . . . Utility 6 | . 1 1 4 Device 4 | . . 1 3 Storage . | . . . . Processor 1 | . 1 . . Hackware . | . . . . Protection 1 | . . . 1 Artifact . | . . . . Weapon 9 | . . 2 7 Energy Gun 6 | . . 1 5 Energy Cannon . | . . . . Ballistic Gun 2 | . . 1 1 Ballistic Cannon . | . . . . Launcher 1 | . . . 1 Special Weapon . | . . . . Impact Weapon . | . . . . Slashing Weapon . | . . . . Piercing Weapon . | . . . . Special Melee Weapon . | . . . . Unidentified Prototypes . | . . . . Parts Lost 8 | . 1 3 4 Power . | . . . . Propulsion 3 | . . 2 1 Utility 1 | . 1 . . Weapon 4 | . . 1 3 Highest Loss Streak 2 | . 1 2 1 To Critical Strikes . | . . . . Average Slot Usage (%) 92 | . 91 92 93 Engine 12 | . 14 14 11 Leg 25 | . 28 28 22 Device 10 | . . 6 23 Storage 12 | . 14 14 11 Processor 1 | . 5 . . Protection 1 | . . . 5 Energy Gun 20 | . 28 17 17 Ballistic Gun 4 | . . 10 2 Peak Build Rating 14 | . 7 10 14 Average Rating 9 | . 6 7 12 On Entrance 7 | 6 6 6 10 Naked Turns . | . . . . Heaviest Build 19 | 12 14 16 19 Greatest Support 23 | 20 20 20 23 Greatest Overweight (x) . | . . . . Average Overweight (x) . | . . . . Largest Inventory Capacity 8 | . 8 8 8 Average Capacity 8 | . 8 8 8 Most Carried 8 | . 8 8 8 Average Carried 7 | . 7 7 7 Final Capacity 8 | 8 8 8 8 Final Carried 8 | 6 8 8 7 Class Distribution -------------------- 54% | Scavenger-Mutant 45% | Mutant Dominant Class ---------------- Mutant | -10/Materials Scavenger-Mutant | -10/Mines Scavenger-Mutant | -9/Materials Resources | -11 -10 -10 -9 ----------- Run | Yrd Mat Min Mat Matter Collected 562 | 200 26 87 249 Remotely . | . . . . Salvage Created 843 | . 157 231 455 Parts 53 | . 10 17 26 Haulers Intercepted . | . . . . Recyclers Shooed 2 | . 1 1 . Parts Field Recycled . | . . . . Retrieved Matter . | . . . . Parts Self-Destructed . | . . . . Prevented . | . . . . Kills | -11 -10 -10 -9 ------- Run | Yrd Mat Min Mat Combat Hostiles Destroyed 22 | . 3 7 12 Guns 19 | . 3 7 9 AOE 2 | . . . 2 Classes Destroyed 6 | . 2 1 3 Builder 2 | . . . 2 Watcher 3 | . 1 . 2 Swarmer 3 | . . 3 . Grunt 15 | . 3 4 8 Duelist 1 | . . . 1 Sentry 3 | . . . 3 Best Kill Streak 5 | . 2 3 5 Combat Bots Only 3 | . 2 3 3 Max Kills in Single Turn 2 | . 1 1 2 Gunslinging . | . . . . Exploded 1 | . . . 1 Melee . | . . . . Uniques/NPCs Destroyed . | . . . . Combat | -11 -10 -10 -9 -------- Run | Yrd Mat Min Mat Hostile Shots Fired 146 | . 10 53 83 Missed 41 | . 4 11 26 Damage Taken 1323 | . 66 466 791 Core 190 | . . 106 84 Absorbed by Shields . | . . . . Redirected to Shielding 12 | . . . 12 Core Remaining (%) 78 | 100 . 57 . Volleys Fired 97 | . 14 27 56 Largest 2 | . 2 2 2 Hottest 121 | . 90 90 121 Shots Fired 185 | . 28 52 105 Gun 176 | . 28 52 96 Cannon . | . . . . Launcher 9 | . . . 9 Special . | . . . . Kinetic 29 | . . 18 11 Thermal 125 | . 14 26 85 Explosive 9 | . . . 9 Electromagnetic 22 | . 14 8 . Robot Hit Streak 13 | . 4 13 10 Robot Miss Streak 4 | . 2 4 3 Penetration Max . | . . . . Secondary Targets 1 | . . 1 . Max Gunslinging Chain 1 | . . 1 . Shots Hit Robots 123 | . 15 35 73 Core Hits 49 | . 6 13 30 Critical Kills . | . . . . Critical Parts Destroyed . | . . . . Critical Strikes 6 | . 1 2 3 Burn 5 | . 1 1 3 Corrupt 1 | . . 1 . Melee Attacks . | . . . . Impact . | . . . . Slashing . | . . . . Piercing . | . . . . Sneak Attacks . | . . . . Combat Hostiles . | . . . . Follow-up Attacks . | . . . . Damage Inflicted 2250 | . 289 516 1445 Guns 1559 | . 205 468 886 Cannons . | . . . . Explosions 677 | . 80 38 559 Melee . | . . . . Ramming 14 | . 4 10 . Kinetic 180 | . . 154 26 Thermal 1269 | . 169 240 860 Explosive 559 | . . . 559 Electromagnetic 228 | . 116 112 . Impact . | . . . . Slashing . | . . . . Piercing . | . . . . Highest Corruption 2 | . 2 2 . Average Corruption 1 | . 1 2 . Corruption Purged . | . . . . Corruption Blocked . | . . . . Effects 14 | . 6 8 . Message Errors 4 | . 2 2 . Matter Fused 4 | . 2 2 . Heat Flow Errors 2 | . 1 1 . Data Loss (minor) 3 | . 1 2 . Weapon Failures 1 | . . 1 . Overload Shots . | . . . . Overflow Damage 3 | . . . 3 Projectiles . | . . . . Explosions 3 | . . . 3 Melee . | . . . . Knockbacks . | . . . . Impact . | . . . . Kinetic . | . . . . Secondary . | . . . . Self-Inflicted Damage 53 | . . . 53 Shots 3 | . . . 3 Rammed . | . . . . Targets Rammed 3 | . 1 2 . Kicked 3 | . 1 2 . Crushed . | . . . . Highest Temperature 214 | . 214 211 34 Average Temperature 74 | . 82 76 13 Received Heat Transfer 564 | . 36 207 321 Effects 2 | . . 2 . Interference 2 | . . 2 . Siege Activations . | . . . . Robots Corrupted . | . . . . Combat Hostiles . | . . . . Parts Fried . | . . . . Impact Corruptions . | . . . . Robots Melted 1 | . . . 1 Combat Hostiles 1 | . . . 1 Parts Melted 12 | . . 3 9 Heat Transferred 3426 | . 433 716 2277 Parts Sabotaged . | . . . . Parts Stolen . | . . . . Parts Stripped . | . . . . Power Chain Reactions 2 | . 1 1 . Alert | -11 -10 -10 -9 ------- Run | Yrd Mat Min Mat Peak Influence 341 | . 90 178 341 Initial 34 | . . 34 . Average 119 | . 43 133 165 Maximum Alert Level 1 | . . . 1 Low Security (%) 84 | . 100 100 57 Level 1 15 | . . . 42 Level 2 . | . . . . Level 3 . | . . . . Level 4 . | . . . . Level 5 . | . . . . High Security . | . . . . Max Security . | . . . . Squads Dispatched 2 | . . . 2 Investigation 1 | . . . 1 Extermination . | . . . . Reinforcement 1 | . . . 1 Assault . | . . . . Garrison . | . . . . Intercept . | . . . . Searches Triggered . | . . . . Construction Impeded . | . . . . Haulers Reinforced . | . . . . Active Scanning Responses . | . . . . Cargo Convoy Interrupts . | . . . . Stealth | -11 -10 -10 -9 --------- Run | Yrd Mat Min Mat Distress Signals 1 | . . . 1 Communications Jammed . | . . . . Distress Signals . | . . . . Times Spotted 33 | . 6 7 20 Peak Tracking Total 8 | . 2 2 8 Tactical Retreats 1 | . . . 1 Traps | -11 -10 -10 -9 ------- Run | Yrd Mat Min Mat Traps Triggered 2 | . 2 . . Indirectly . | . . . . Trap Hack Attempts . | . . . . Triggered . | . . . . Disarmed . | . . . . Reprogrammed . | . . . . Reused . | . . . . Traps Extracted . | . . . . Installed . | . . . . Triggered . | . . . . Machines | -11 -10 -10 -9 ---------- Run | Yrd Mat Min Mat Machines Disabled . | . . . . Max in Single Turn . | . . . . Machines Repaired . | . . . . Machines Dismantled . | . . . . Machines Sabotaged . | . . . . Overloaded Fab Kills . | . . . . Hacking | -11 -10 -10 -9 --------- Run | Yrd Mat Min Mat Machines Accessed 8 | . 3 . 5 Terminals 8 | . 3 . 5 Fabricators . | . . . . Repair Stations . | . . . . Recycling Units . | . . . . Scanalyzers . | . . . . Garrison Access . | . . . . Total Hacks 14 | . 5 . 9 Successful 3 | . 1 . 2 Failed 11 | . 4 . 7 Catastrophic 5 | . 2 . 3 Database Lockouts . | . . . . Manual 7 | . 2 . 5 Terminals 14 | . 5 . 9 Fabricators . | . . . . Repair Stations . | . . . . Recycling Units . | . . . . Scanalyzers . | . . . . Garrison Access . | . . . . Terminal Hacks 3 | . 1 . 2 Robot Analysis 1 | . 1 . . Prototype ID Bank 1 | . . . 1 Alert Level 1 | . . . 1 Fabricator Hacks . | . . . . Repair Station Hacks . | . . . . Recycling Unit Hacks . | . . . . Scanalyzer . | . . . . Garrison Access Hacks . | . . . . Unauthorized Hacks . | . . . . Terminals . | . . . . Fabricators . | . . . . Repair Stations . | . . . . Recycling Units . | . . . . Scanalyzers . | . . . . Garrison Access . | . . . . Data Cores Recovered . | . . . . Used . | . . . . Hacking Detections 7 | . 3 . 4 Full Trace Events 1 | . . . 1 Feedback Events . | . . . . Feedback Blocked . | . . . . Robot Schematics Acquired . | . . . . Robots Built . | . . . . Authchips . | . . . . Time . | . . . . Total Robot Build Rating . | . . . . Part Schematics Acquired . | . . . . Parts Built . | . . . . Authchips . | . . . . Time . | . . . . Total Part Build Rating . | . . . . Parts Repaired . | . . . . Time . | . . . . Parts Recycled . | . . . . Recycled Matter . | . . . . Retrieved Matter . | . . . . Retrieved Components . | . . . . Parts Scanalyzed . | . . . . Part Schematics Acquired . | . . . . Parts Damaged . | . . . . Bothacking | -11 -10 -10 -9 ------------ Run | Yrd Mat Min Mat Used RIF Installer . | . . . . Robots Hacked . | . . . . Non-combat . | . . . . Combat . | . . . . Robot Hacks Applied . | . . . . Relay Couplers Released . | . . . . Fabnet Peak Effective % . | . . . . Robots Rewired . | . . . . Allies Hacked . | . . . . Hacks Repelled . | . . . . Allies | -11 -10 -10 -9 -------- Run | Yrd Mat Min Mat Total Allies . | . . . . Largest Group . | . . . . Highest-Rated Group . | . . . . Highest-Rated Ally . | . . . . Total Orders . | . . . . Ally Attacks . | . . . . Total Damage . | . . . . Kills . | . . . . Allies Corrupted . | . . . . Allies Melted . | . . . . Intel | -11 -10 -10 -9 ------- Run | Yrd Mat Min Mat Robot Analysis Total 1 | . 1 . . Derelict Logs Recovered 2 | . . 2 . Drone Launches . | . . . . Drone Recoveries . | . . . . Exploration | -11 -10 -10 -9 ------------- Run | Yrd Mat Min Mat Turns Passed 1243 | . 365 419 459 Spaces Moved 736 | 1 246 267 222 Core . | . . . . Treads . | . . . . Legs 736 | 1 246 267 222 Wheels . | . . . . Hover . | . . . . Flight . | . . . . Fastest Speed 120 | 120 120 120 120 Average Speed 120 | 120 120 120 120 Slowest Speed 120 | 120 120 120 120 Overloaded Moves . | . . . . Propulsion Burnouts . | . . . . Robots Hopped . | . . . . Cave-ins Triggered . | . . . . Exploration Rate (%) 30 | 2 46 55 20 Regions Visited 3 Branch Regions 1 Pre-discovered Areas . | . . . . Known Exits Taken . | . . . . Unknown Exits Taken 3 | 1 1 1 . Scrap Searched . | . . . . Spaces Dug . | . . . . Terrain Destroyed 44 | . 2 4 38 Melee . | . . . . Projectile . | . . . . AOE 44 | . 2 4 38 Terrain Rammed . | . . . . Walls Destroyed . | . . . . Machines Disabled . | . . . . Actions | -11 -10 -10 -9 --------- Run | Yrd Mat Min Mat Total 917 | . 288 312 317 Wait 30 | . 17 6 7 Move 733 | . 245 266 222 Hop . | . . . . Pick Up 12 | . 5 3 4 Fast Attach 5 | . 1 1 3 Attach 8 | . . 3 5 Detach . | . . . . Swap 12 | . 1 2 9 Drop 17 | . 4 2 11 Fire 97 | . 14 27 56 Melee . | . . . . Ram . | . . . . Kick 3 | . 1 2 . Crush . | . . . . Escape Stasis . | . . . . Rewire . | . . . . Trap . | . . . . Miscellaneous . | . . . . Route ------- -11/Scrapyard -10/Materials (discovered 2 exits: *Mat / [*Min]) -10/Mines (discovered 2 exits: *Mat x2) -9/Materials History --------- Turn | Location | Event 1 | -11/Scrapyard | Discovered new exit (range 0) 1 | -11/Scrapyard | Entered Materials 237 | -10/Materials | Discovered new exit (range 8) 300 | -10/Materials | Build established: Mutant 350 | -10/Materials | Discovered new exit (range 8) 366 | -10/Materials | Entered Mines 472 | -10/Mines | Discovered new exit (range 4) 629 | -10/Mines | Learned Materials interactive machine intel 631 | -10/Mines | Learned Materials emergency access door positions 711 | -10/Mines | Discovered new exit (range 3) 762 | -10/Mines | Assembled infested the area 785 | -10/Mines | Entered Materials 785 | -9/Materials | Evolved 2 slots: Utility x2 787 | -9/Materials | Loaded intel: 18 interactive machine locations 917 | -9/Materials | Build established: Scavenger-Mutant 1244 | -9/Materials | Self-destructed Last Messages --------------- 01211_ G-34 Mercenary destroyed. 01216_ U-05 Engineer lays Concrete. 01219_ Acquired 13 matter. 01219_ U-05 Engineer lays Concrete. 01220_ U-05 Engineer destroyed. 01222_ U-05 Engineer builds a Wall. 01223_ Destroyed Hover Unit. 01226_ U-05 Engineer destroyed. 01229_ K-01 Serf collects debris. 01229_ Destroyed Aluminum Leg. 01229_ G-34 Mercenary destroyed. 01229_ Destroyed Hover Unit. 01229_ W-16 Scout destroyed. 01230_ The unstable cave ceiling collapses. 01234_ K-01 Serf collects debris. 01235_ The unstable cave ceiling collapses. 01235_ ALERT: Hostiles spotted, dispatching reinforcements to Terminal M007. 01237_ Grenade Launcher destroyed. 01239_ K-01 Serf collects debris. Map ----- +----------------------------------------------------+ | ?# ## ## # ##+########## | | ?# ## #######+#### #??????"""??# | | ?# ""T"" ## ##### ### #??????"R"??# | | ?# """"" ## #??????"?"??# | | ?# ## T #???????????# | | ?################+## ### ##???????????# | | ?????????# ########+#######??????# | | ?????????# #!! #??????# | | ?????????# #!! """ "" ##??????# | | ?????????# #!! """"""""" #???????# | | ?????????# # """"" " #???????# | | ?????????# # #???????# | | ?????????# # % #???????# | | ?????????# ######+########???????# | | ?????????###########???# %#######???????+ | | ????????################ !# T #???????? | | ????????+ = # #????????? | | ?????????# %+! #????????? | | ?????????# = #= #????????? | | ?????????# # #????????? | | ?????????# ! ### #######????????? | | ?????????# # ######????????? | | ?????????+ # =%! ?? | | ?????????# k # T =* ?? | | ?????????# # # ?? | | ?????????####### m@ ## ############??? | | ???????????????# = ########?????????????? | | ?????????????? # #????????????????????? | | ????????????# a #????????????????????? | | ????????????# ###????????????????????? | | ????????????#g ??????????????????????? | | ??????????? + ??????????????????????? | | ?????????? # g ??????????????????????? | | ?????????##+#### ??????????????????????? | | ??????????????? ??????????????????????? | | ??????????????? g ??????????????????????? | | ??????????????? ??????????????????????? | | ??????????????##### ??????????????????????? | | ??????????????????? ??????????????????????? | | ??????????????????? ??????????????????????? | | ??????????????????? ??????????????????????? | | ??????????????????????????????????????????? | | ??????????????????????????????????????????? | | ??????????????????????????????????????????? | | ??????????????????????????????????????????? | | ??????????????????????????????????????????? | | ??????????????????????????????????????????? | | ??????????????????????????????????????????? | | ??????????????????????????????""T""???????? | | ??????????????????????????????"""""???????? | +----------------------------------------------------+ Best States ------------- Heat Dissipation 62 Energy Generation 10 Energy Capacity 250 Matter Stores 300 Matter Capacity 300 Sight Range 16 Terrain Scan Density 10 Utility Shielding 33 Evasion (%) 55 Targeting Accuracy 5 Item Schematics ----------------- None Robot Schematics ------------------ None Fabricated ------------ Nothing Alien Tech Used ----------------- None Achievements -------------- None Challenges ------------ None Game ------ Seed MachineActiveExtractor Manual? 0 Play Time 00:09:10 Cumulative 187.8 hours Start 2025.03.08 @ 16:32:21 End 2025.03.08 @ 16:57:55 Sessions 3 Manual Loads 0 Difficulty Rogue Special Mode None Game No. 134 Rogue 134 Adventurer 0 Explorer 0 Win Type - Total 10 Types 10/0/0/0/0/0/0/0/0 Lore% 76 Gallery% 68 Achievement% 53 Wizard Run 0 Options --------- Layout 2 ASCII 0 Keyboard 1 Movement Arrows Keybinds 0 Fullscreen 1 Font 24/Proggy Map View 50x44 Zoom Use 0% Tactical HUD 1 Map Filters NONE Filters NONE Steam 1 RUN: 4d262899-0174-48c2-b715-b7083e52f7f5